bitfinex/quotes_BTCUSD_20250908
["timestamp","ask_amount","ask_price","bid_price","bid_amount"]
[1757302669307,1.355e-05,111310.0,111300.0,1.79820292]
[1757302669521,1.355e-05,111310.0,111300.0,2.1750681]
[1757302670129,1.355e-05,111310.0,111300.0,2.0247081]
[1757302670352,1.355e-05,111310.0,111300.0,2.1754681]
[1757302672500,1e-08,111330.0,111320.0,0.96746623]
[1757302672702,1e-08,111330.0,111320.0,1.45302042]
[1757302672905,1e-08,111330.0,111320.0,1.44454783]
[1757302673084,1e-08,111330.0,111320.0,1.76410963]
[1757302673297,1e-08,111330.0,111320.0,1.68304399]
[1757302673506,1e-08,111330.0,111320.0,1.87147658]
[1757302673922,1e-08,111330.0,111320.0,1.87947658]
[1757302674772,1e-08,111330.0,111320.0,1.53992399]
[1757302674991,1e-08,111330.0,111320.0,1.68185989]
[1757302675213,1e-08,111330.0,111320.0,2.10872507]
[1757302675427,1e-08,111330.0,111320.0,2.11472507]
[1757302675694,0.0002,111340.0,111330.0,0.96745009]
[1757302675920,0.00066596,111340.0,111330.0,1.36089027]
[1757302676132,0.00066596,111340.0,111330.0,1.38973027]
[1757302676342,0.00066596,111340.0,111330.0,1.4164606]
[1757302676556,0.0002,111350.0,111330.0,1.79332578]
[1757302676764,0.0002837,111350.0,111340.0,0.66204273]
[1757302677010,0.0002837,111350.0,111340.0,0.99979736]
[1757302677230,1e-08,111350.0,111340.0,1.08228155]
[1757302677438,1e-08,111350.0,111340.0,1.53228155]
[1757302678061,1e-08,111350.0,111340.0,1.58228155]
[1757302678267,1e-08,111350.0,111340.0,1.31352477]
[1757302678486,1e-08,111350.0,111340.0,1.34975736]
[1757302678695,1e-08,111350.0,111340.0,1.58828155]
[1757302679328,1e-08,111350.0,111340.0,1.35575736]
[1757302679536,1e-08,111350.0,111340.0,1.50843736]
[1757302679970,1e-08,111350.0,111340.0,1.52551746]
[1757302680177,1e-08,111350.0,111340.0,1.55247989]
[1757302681861,1e-08,111350.0,111340.0,1.50247989]
[1757302682092,1e-08,111350.0,111340.0,1.55247989]
[1757302682401,1e-08,111350.0,111340.0,1.55307989]
[1757302682612,1e-08,111350.0,111340.0,1.1613673]
[1757302682820,1e-08,111350.0,111340.0,1.50311989]
[1757302684540,1e-08,111350.0,111340.0,1.69113138]
[1757302684966,1e-08,111350.0,111340.0,1.64113138]
[1757302685174,1e-08,111350.0,111340.0,1.69113138]
[1757302685816,1e-08,111350.0,111340.0,1.92935342]
[1757302686263,1e-08,111350.0,111340.0,1.3646873]
[1757302686483,1e-08,111350.0,111340.0,1.92935342]
[1757302686974,1e-08,111350.0,111340.0,1.74113138]
[1757302687208,1e-08,111350.0,111340.0,1.3689673]
[1757302687409,1e-08,111350.0,111340.0,1.74541138]
[1757302687618,1e-08,111350.0,111340.0,1.93363342]
[1757302688025,1e-08,111350.0,111340.0,1.74541138]
[1757302688471,1e-08,111350.0,111340.0,1.58781138]
[1757302688685,1e-08,111350.0,111340.0,1.69561138]
[1757302688910,1e-08,111350.0,111340.0,1.3191673]
[1757302689128,1e-08,111350.0,111340.0,1.69561138]
[1757302689661,1e-08,111350.0,111340.0,1.3191673]
[1757302690045,1e-08,111350.0,111340.0,1.69561138]
[1757302690306,1e-08,111350.0,111340.0,1.3191673]
[1757302690505,1e-08,111350.0,111340.0,1.69561138]
[1757302690687,1e-08,111350.0,111340.0,1.88383342]
[1757302690900,1e-08,111350.0,111340.0,1.93383342]
[1757302691139,0.0102,111380.0,111370.0,0.19444307]
[1757302691363,0.0102,111380.0,111370.0,0.89523314]
[1757302691566,0.0102,111380.0,111370.0,0.7070111]
[1757302691772,0.0102,111380.0,111370.0,1.13396829]
[1757302692234,0.0102,111380.0,111370.0,1.32219033]
[1757302692447,0.0102,111380.0,111370.0,1.68568033]
[1757302692651,0.0102,111380.0,111370.0,1.73568033]
[1757302692858,0.0102,111380.0,111370.0,1.73668033]
[1757302693287,0.0102,111380.0,111370.0,1.36023625]
[1757302693722,0.0102,111380.0,111370.0,1.74268033]
[1757302694390,0.0102,111380.0,111370.0,1.75068033]
[1757302694607,0.0102,111380.0,111370.0,1.78940365]
[1757302694831,0.0102,111380.0,111370.0,1.79540365]
[1757302697853,0.0102,111380.0,111370.0,2.05860365]
[1757302698059,0.0102,111380.0,111370.0,1.68215957]
[1757302698394,0.0102,111380.0,111370.0,2.05860365]
[1757302698953,0.0102,111380.0,111370.0,1.73215957]
[1757302698954,1e-08,111380.0,111370.0,1.73215957]
[1757302699160,1e-08,111380.0,111370.0,2.10860365]
[1757302700912,1e-08,111380.0,111370.0,1.95048365]
[1757302701142,1e-08,111380.0,111370.0,2.10908365]
[1757302701555,1e-08,111380.0,111370.0,1.95048365]
[1757302701971,1e-08,111380.0,111370.0,2.10904365]
[1757302702639,1e-08,111380.0,111370.0,2.12703365]
[1757302704312,0.0002,111390.0,111380.0,0.89600953]
[1757302704519,0.00033969,111390.0,111380.0,1.14648552]
[1757302704678,0.00033969,111390.0,111380.0,1.15176552]
[1757302704882,0.00033969,111390.0,111380.0,1.55176552]
[1757302705080,0.00033969,111390.0,111380.0,1.57871971]
[1757302705280,0.00033969,111390.0,111380.0,1.20227563]
[1757302705713,0.00033969,111390.0,111380.0,1.58371971]
[1757302706222,0.00033969,111390.0,111380.0,1.20403563]
[1757302706377,0.00033969,111390.0,111380.0,1.40245767]
[1757302707006,0.00033969,111390.0,111380.0,1.59067971]
[1757302708412,0.00033969,111390.0,111380.0,1.59079971]
[1757302708770,0.00033969,111390.0,111380.0,1.21435563]
[1757302708982,0.00033969,111390.0,111380.0,1.59079971]
[1757302709905,0.00033969,111390.0,111380.0,1.05571563]
[1757302710139,0.00033969,111390.0,111380.0,1.43215971]
[1757302710344,0.00033969,111390.0,111380.0,1.59083971]
[1757302711291,0.00033969,111390.0,111380.0,1.05571563]
[1757302711726,0.19377173,111390.0,111380.0,0.71043563]
[1757302711908,0.19377173,111390.0,111380.0,0.86903563]
[1757302712337,0.19377173,111390.0,111380.0,0.71043563]
[1757302712581,0.00554969,111390.0,111380.0,0.86419563]
[1757302712878,0.19377173,111390.0,111380.0,1.19719563]
[1757302713083,0.19377173,111390.0,111380.0,1.20419563]
[1757302713291,0.00033969,111390.0,111380.0,1.39769767]
[1757302713495,0.00238969,111390.0,111380.0,1.38749767]
[1757302713707,0.00033969,111390.0,111380.0,1.39069767]
[1757302714390,0.00033969,111390.0,111380.0,1.39569767]
[1757302714802,0.00554969,111390.0,111380.0,1.39249767]
[1757302715031,0.00554969,111390.0,111380.0,1.38749767]
[1757302715249,0.00554969,111390.0,111380.0,1.39249767]
[1757302715457,0.00238969,111390.0,111380.0,1.39249767]
[1757302715661,0.00033969,111390.0,111380.0,1.21447563]
[1757302715861,0.00033969,111390.0,111380.0,1.40269767]
[1757302716069,0.00554969,111390.0,111380.0,1.21127563]
[1757302716283,0.00554969,111390.0,111380.0,1.20919563]
[1757302716918,0.19377173,111390.0,111380.0,1.20927563]
[1757302717130,0.00554969,111390.0,111380.0,1.20927563]
[1757302717557,0.00554969,111390.0,111380.0,1.20427563]
[1757302717986,0.19377173,111390.0,111380.0,1.20927563]
[1757302718417,0.00554969,111390.0,111380.0,1.20427563]
[1757302718637,0.00554969,111390.0,111380.0,1.20635563]
[1757302718891,0.00554969,111390.0,111380.0,1.04751563]
[1757302719117,0.00554969,111390.0,111380.0,1.20643563]
[1757302719342,0.00554969,111390.0,111380.0,1.39965767]
[1757302719564,0.00033969,111390.0,111380.0,1.21463563]
[1757302719768,0.00238969,111390.0,111380.0,1.21143563]
[1757302719975,0.00554969,111390.0,111380.0,1.20935563]
[1757302720868,0.00554969,111390.0,111380.0,1.20435563]
[1757302721072,0.00554969,111390.0,111380.0,1.21143563]
[1757302721285,0.00554969,111390.0,111380.0,1.20935563]
[1757302721719,0.00554969,111390.0,111380.0,1.20435563]
[1757302721936,0.00554969,111390.0,111380.0,1.19735563]
[1757302722145,0.00554969,111390.0,111380.0,1.20235563]
[1757302722352,0.00554969,111390.0,111380.0,1.22034563]
[1757302722575,0.00554969,111390.0,111380.0,1.04343563]
[1757302722827,0.00554969,111390.0,111380.0,1.21139563]
[1757302723041,0.00554969,111390.0,111380.0,1.20931563]
[1757302723465,0.5615431,111390.0,111380.0,0.28979018]
[1757302723670,0.5615431,111390.0,111380.0,0.46935563]
[1757302723887,0.5615431,111390.0,111380.0,0.03895419]
[1757302724088,0.37332106,111390.0,111380.0,0.012]
[1757302724332,0.37332106,111390.0,111380.0,0.16588]
[1757302724544,0.5615431,111390.0,111380.0,0.16588]
[1757302724728,0.5615431,111390.0,111380.0,0.16788]
[1757302724943,0.37332106,111390.0,111380.0,0.34744545]
[1757302725111,0.37332106,111390.0,111380.0,0.34544545]
[1757302725321,0.37332106,111390.0,111380.0,0.33844545]
[1757302725527,0.37332106,111390.0,111380.0,0.34144545]
[1757302726074,0.19377173,111390.0,111380.0,0.33944545]
[1757302726481,0.19377173,111390.0,111380.0,0.34044545]
[1757302726740,0.19377173,111390.0,111380.0,0.43444144]
[1757302726741,0.00554969,111390.0,111380.0,0.43444144]
[1757302726949,0.00238969,111390.0,111380.0,0.43444144]
[1757302727155,0.19061173,111390.0,111380.0,0.43444144]
[1757302727363,0.00238969,111390.0,111380.0,0.43444144]
[1757302727781,0.19061173,111390.0,111380.0,0.43444144]
[1757302728208,0.19377173,111390.0,111380.0,0.43444144]
[1757302728639,0.19377173,111390.0,111380.0,0.46140203]
[1757302728973,0.19377173,111390.0,111380.0,0.43444144]
[1757302730212,0.00554969,111390.0,111380.0,0.43236144]
[1757302730439,0.19377173,111390.0,111380.0,0.43236144]
[1757302731860,0.00554969,111390.0,111380.0,0.43236144]
[1757302734406,0.19377173,111390.0,111380.0,0.43176144]
[1757302735795,0.00554969,111390.0,111380.0,0.43176144]
[1757302736027,0.19377173,111390.0,111380.0,0.43176144]
[1757302736904,0.00554969,111390.0,111380.0,0.43152144]
[1757302737117,0.19377173,111390.0,111380.0,0.43152144]
[1757302738818,0.00554969,111390.0,111380.0,0.43152144]
[1757302739025,0.19377173,111390.0,111380.0,0.43152144]
[1757302739871,0.37332106,111390.0,111380.0,0.43152144]
[1757302740427,0.5615431,111390.0,111380.0,0.25187599]
[1757302740660,0.5615431,111390.0,111380.0,0.16037556]
[1757302740860,0.37332106,111390.0,111380.0,0.16037556]
[1757302741054,0.18509902,111390.0,111380.0,0.16037556]
[1757302741257,0.37332106,111390.0,111380.0,0.16037556]
[1757302741890,0.5615431,111390.0,111380.0,0.16037556]
[1757302742100,0.5615431,111390.0,111380.0,0.00241556]
[1757302742305,0.5615431,111390.0,111380.0,0.16037556]
[1757302743950,0.18509902,111390.0,111380.0,0.16037556]
[1757302744160,0.5615431,111390.0,111380.0,0.16037556]
[1757302744391,0.56155954,111390.0,111380.0,0.16037556]
[1757302746123,0.56155954,111390.0,111380.0,0.00241556]
[1757302746346,0.56155954,111390.0,111380.0,0.16001556]
[1757302748139,0.18509902,111390.0,111380.0,0.16001556]
[1757302748358,0.56155954,111390.0,111380.0,0.16001556]
[1757302755203,0.71967954,111390.0,111380.0,0.16001556]
[1757302755432,0.71963954,111390.0,111380.0,0.16001556]
[1757302756501,0.56155954,111390.0,111380.0,0.16001556]
[1757302756918,0.71955954,111390.0,111380.0,0.16001556]
[1757302757127,0.56155954,111390.0,111380.0,0.16001556]
[1757302757333,0.71955954,111390.0,111380.0,0.16001556]
[1757302757778,0.71947954,111390.0,111380.0,0.16001556]
[1757302757997,0.56155954,111390.0,111380.0,0.33958101]
[1757302758435,0.56155954,111390.0,111380.0,0.16001556]
[1757302761120,0.37332928,111390.0,111380.0,0.16001556]
[1757302761333,0.56155954,111390.0,111380.0,0.16001556]
[1757302763885,0.56155954,111390.0,111380.0,0.33958101]
[1757302764846,0.56155954,111390.0,111380.0,0.16001556]
[1757302766323,0.18509902,111390.0,111380.0,0.16001556]
[1757302766522,0.56155954,111390.0,111380.0,0.16001556]
[1757302766927,0.18509902,111390.0,111380.0,0.16001556]
[1757302767134,0.56155954,111390.0,111380.0,0.16001556]
[1757302768494,0.18509902,111390.0,111380.0,0.33958101]
[1757302768713,0.56155954,111390.0,111380.0,0.33958101]
[1757302769693,0.56155954,111390.0,111380.0,0.16001556]
[1757302770465,0.56121985,111390.0,111380.0,0.33958101]
[1757302770736,0.5602871,111390.0,111380.0,0.16001556]
[1757302772862,0.18382658,111390.0,111380.0,0.16001556]
[1757302773098,0.5602871,111390.0,111380.0,0.16001556]
[1757302773608,0.5602871,111390.0,111380.0,0.33958101]
[1757302775082,0.18382658,111390.0,111380.0,0.33958101]
[1757302775295,0.5602871,111390.0,111380.0,0.33958101]
[1757302775635,0.18382658,111390.0,111380.0,0.33958101]
[1757302776087,0.5602871,111390.0,111380.0,0.33958101]
[1757302776963,0.00203,111390.0,111380.0,0.34173101]
[1757302777203,0.19026026,111390.0,111380.0,0.34495101]
[1757302778059,0.19026026,111390.0,111380.0,0.34173101]
[1757302778586,0.19336026,111390.0,111380.0,0.33958101]
[1757302779157,0.19336026,111390.0,111380.0,0.18198101]
[1757302779368,0.19336026,111390.0,111380.0,0.33898101]
[1757302779618,0.00513,111390.0,111380.0,0.33898101]
[1757302779814,0.19336026,111390.0,111380.0,0.33898101]
[1757302781823,0.19026026,111390.0,111380.0,0.33898101]
[1757302782258,0.00203,111390.0,111380.0,0.33898101]
[1757302782477,0.19026026,111390.0,111380.0,0.33898101]
[1757302784414,0.00203,111390.0,111380.0,0.33898101]
[1757302784626,0.19026026,111390.0,111380.0,0.34113101]
[1757302784833,0.19026026,111390.0,111380.0,0.34160901]
[1757302785451,0.00203,111390.0,111380.0,0.34482901]
[1757302785874,0.19026026,111390.0,111380.0,0.33945901]
[1757302786087,0.19336026,111390.0,111380.0,0.33945901]
[1757302786297,0.19026026,111390.0,111380.0,0.34160901]
[1757302786790,0.19026026,111390.0,111380.0,0.33945901]
[1757302788137,0.00203,111390.0,111380.0,0.33945901]
[1757302788347,0.19336026,111390.0,111380.0,0.33945901]
[1757302789365,0.19336026,111390.0,111380.0,0.33898101]
[1757302789570,0.19026026,111390.0,111380.0,0.34113101]
[1757302789805,0.19026026,111390.0,111380.0,0.36809457]
[1757302790245,0.19026026,111390.0,111380.0,0.36594457]
[1757302791180,0.19026026,111390.0,111380.0,0.36793457]
[1757302792009,0.00203,111390.0,111380.0,0.37108457]
[1757302792223,0.19026026,111390.0,111380.0,0.37108457]
[1757302792440,0.19026026,111390.0,111380.0,0.36793457]
[1757302793212,0.19026026,111390.0,111380.0,0.36594457]
[1757302793407,0.19335026,111390.0,111380.0,0.20894457]
[1757302793597,0.19335026,111390.0,111380.0,0.36494457]
[1757302794205,0.19335026,111390.0,111380.0,0.20894457]
[1757302794415,0.19335026,111390.0,111380.0,0.36494457]
[1757302795091,0.19335026,111390.0,111380.0,0.20894457]
[1757302795303,0.19335026,111390.0,111380.0,0.36498457]
[1757302796001,0.19335026,111390.0,111380.0,0.20894457]
[1757302796214,0.19335026,111390.0,111380.0,0.36494457]
[1757302796428,0.19335026,111390.0,111380.0,0.20894457]
[1757302796645,0.38158052,111390.0,111380.0,0.20894457]
[1757302796856,0.38158052,111390.0,111380.0,0.36502457]
[1757302797293,0.19335026,111390.0,111380.0,0.36502457]
[1757302798561,0.00512,111390.0,111380.0,0.36502457]
[1757302800385,0.00203,111390.0,111380.0,0.36502457]
[1757302800600,0.00512,111390.0,111380.0,0.36502457]
[1757302800801,0.00203,111390.0,111380.0,0.36502457]
[1757302800990,0.00512,111390.0,111380.0,0.36502457]
[1757302801215,0.00203,111390.0,111380.0,0.36502457]
[1757302801425,0.00512,111390.0,111380.0,0.36502457]
[1757302804754,0.19329815,111390.0,111380.0,0.36502457]
[1757302806037,0.00512,111390.0,111380.0,0.36502457]
[1757302806243,0.19329815,111390.0,111380.0,0.36502457]
[1757302807970,0.19020815,111390.0,111380.0,0.36502457]
[1757302808197,0.19329815,111390.0,111380.0,0.36502457]
[1757302809947,0.19020815,111390.0,111380.0,0.36502457]
[1757302810079,0.19329815,111390.0,111380.0,0.36502457]
[1757302812799,0.37284748,111390.0,111380.0,0.36502457]
[1757302813785,0.36791204,111400.0,111390.0,0.17954933]
[1757302813786,0.0002,111400.0,111390.0,0.17954933]
[1757302814002,0.00236,111400.0,111390.0,0.36971748]
[1757302814673,0.00236,111400.0,111390.0,0.21165023]
[1757302814886,0.00236,111400.0,111390.0,0.39982838]
[1757302815105,0.0002,111400.0,111390.0,0.39982838]
[1757302815318,0.0002,111400.0,111390.0,0.51268319]
[1757302816729,0.00236,111400.0,111390.0,0.50953319]
[1757302816947,0.00236,111400.0,111390.0,0.51268319]
[1757302819564,0.00236,111400.0,111390.0,0.32450504]
[1757302819767,0.00236,111400.0,111390.0,0.32998386]
[1757302819919,0.18189321,111400.0,111390.0,0.32998386]
[1757302820361,0.18189321,111400.0,111390.0,0.32799386]
[1757302820791,0.18189321,111400.0,111390.0,0.33005386]
[1757302822126,0.18189321,111400.0,111390.0,0.13981571]
[1757302822351,0.37328136,111400.0,111390.0,0.04789972]
[1757302822570,0.37328136,111400.0,111390.0,0.20297972]
[1757302822842,0.18510321,111400.0,111390.0,0.20297972]
[1757302823067,0.37328136,111400.0,111390.0,0.20297972]
[1757302823947,0.18510321,111400.0,111390.0,0.20297972]
[1757302824666,0.37328136,111400.0,111390.0,0.1820409]
[1757302824904,0.18510321,111400.0,111390.0,0.1820409]
[1757302826712,0.37328136,111400.0,111390.0,0.1820409]
[1757302827494,0.18510321,111400.0,111390.0,0.1820409]
[1757302827700,0.18189321,111400.0,111390.0,0.1820409]
[1757302831382,0.18189321,111400.0,111390.0,0.36159023]
[1757302832157,0.18189321,111400.0,111390.0,0.1820409]
[1757302832389,0.18510321,111400.0,111390.0,0.1815209]
[1757302832585,0.18189321,111400.0,111390.0,0.1815209]
[1757302833103,0.18510321,111400.0,111390.0,0.1815209]
[1757302833549,0.1746141,111400.0,111390.0,0.1815209]
[1757302833761,0.1734541,111400.0,111390.0,0.1815209]
[1757302834566,0.36163225,111400.0,111390.0,0.1815209]
[1757302835338,0.1734541,111400.0,111390.0,0.1815209]
[1757302835542,0.1734541,111400.0,111390.0,0.36627023]
[1757302835774,0.1734541,111400.0,111390.0,0.55444838]
[1757302835994,0.1714041,111400.0,111390.0,0.55444838]
[1757302836488,0.1733841,111400.0,111390.0,0.55444838]
[1757302837096,0.3678957,111410.0,111390.0,0.5753872]
[1757302837303,0.17953321,111400.0,111390.0,0.5753872]
[1757302837516,0.17953321,111400.0,111390.0,0.5484263]
[1757302838153,0.17953321,111400.0,111390.0,0.36887697]
[1757302838355,0.17953321,111400.0,111390.0,0.39583744]
[1757302838560,0.18151321,111400.0,111390.0,0.39583744]
[1757302839081,0.18151321,111400.0,111390.0,0.20745929]
[1757302839796,0.18151321,111400.0,111390.0,0.39563744]
[1757302840101,0.18151321,111400.0,111390.0,0.20225929]
[1757302840688,0.18151321,111400.0,111390.0,0.20745929]
[1757302840964,0.18151321,111400.0,111390.0,0.39563744]
[1757302841174,0.18151321,111400.0,111390.0,0.39043744]
[1757302841369,0.18151321,111400.0,111390.0,0.20745929]
[1757302841792,0.18151321,111400.0,111390.0,0.39563744]
[1757302841998,0.18151321,111400.0,111390.0,0.20225929]
[1757302842203,0.18151321,111400.0,111390.0,0.20745929]
[1757302842404,0.18151321,111400.0,111390.0,0.20531929]
[1757302843005,0.18151321,111400.0,111390.0,0.20217929]
[1757302843134,0.18151321,111400.0,111390.0,0.20531929]
[1757302843567,0.18151321,111400.0,111390.0,0.38486862]
[1757302843780,0.18151321,111400.0,111390.0,0.38692862]
[1757302846347,0.18151321,111400.0,111390.0,0.20737929]
[1757302847952,0.18151321,111400.0,111390.0,0.38692862]
[1757302852190,0.17953321,111400.0,111390.0,0.38692862]
[1757302854606,0.18151321,111400.0,111390.0,0.38692862]
[1757302854766,0.17953321,111400.0,111390.0,0.38692862]
[1757302854959,0.17953321,111400.0,111390.0,0.57510677]
[1757302859138,0.17953321,111400.0,111390.0,0.38692862]
[1757302859363,0.18151321,111400.0,111390.0,0.38692862]
[1757302860259,0.17953321,111400.0,111390.0,0.38692862]
[1757302860477,0.18151321,111400.0,111390.0,0.45588862]
[1757302861434,0.18151321,111400.0,111390.0,0.27633929]
[1757302862475,0.18151321,111400.0,111390.0,0.45588862]
[1757302862662,0.17953321,111400.0,111390.0,0.45588862]
[1757302862871,0.17953321,111400.0,111390.0,0.64406677]
[1757302864582,0.17971755,111410.0,111390.0,0.54780461]
[1757302864825,0.17953321,111400.0,111390.0,0.73278718]
[1757302865073,0.17953321,111400.0,111390.0,0.51770414]
[1757302865283,0.17953321,111400.0,111390.0,0.54466412]
[1757302865504,0.17953321,111400.0,111390.0,0.54788412]
[1757302866444,0.17953321,111400.0,111390.0,0.36741479]
[1757302866572,0.17953321,111400.0,111390.0,0.54696412]
[1757302868277,0.18151321,111400.0,111390.0,0.54696412]
[1757302868497,0.17953321,111400.0,111390.0,0.54696412]
[1757302870689,0.17971755,111410.0,111390.0,0.54696412]
[1757302871129,0.17971755,111410.0,111390.0,0.52000414]
[1757302871533,0.17971755,111410.0,111400.0,0.02695998]
[1757302871753,0.18169755,111410.0,111400.0,0.02695998]
[1757302872805,0.18169755,111410.0,111400.0,0.03215998]
[1757302874803,0.17971755,111410.0,111400.0,0.03215998]
[1757302875015,0.18169755,111410.0,111400.0,0.03215998]
[1757302875966,0.17971755,111410.0,111400.0,0.03215998]
[1757302877346,0.18169755,111410.0,111400.0,0.03215998]
[1757302877721,0.0002,111410.0,111400.0,0.51491473]
[1757302877954,0.0002,111410.0,111400.0,0.51267057]
[1757302878158,0.0002,111410.0,111400.0,0.49173175]
[1757302878514,0.0002,111410.0,111400.0,0.30360918]
[1757302878933,0.0002,111410.0,111400.0,0.45656918]
[1757302879164,0.18169709,111410.0,111400.0,0.45656918]
[1757302879372,0.00218,111410.0,111400.0,0.45656918]
[1757302879585,0.0002,111410.0,111400.0,0.45656918]
[1757302881029,0.0002,111410.0,111400.0,0.30360918]
[1757302881256,0.00218,111410.0,111400.0,0.45652918]
[1757302881734,0.0002,111410.0,111400.0,0.45652918]
[1757302882994,0.00218,111410.0,111400.0,0.45652918]
[1757302883237,0.0002,111410.0,111400.0,0.45652918]
[1757302883703,0.0002,111410.0,111400.0,0.66559057]
[1757302884347,0.0002,111410.0,111400.0,0.477468]
[1757302884578,0.0002,111410.0,111400.0,0.66559057]
[1757302885162,0.0002,111410.0,111400.0,0.66647057]
[1757302885379,0.0002,111410.0,111400.0,0.66747057]
[1757302887338,0.0002,111410.0,111400.0,0.479308]
[1757302887554,0.0002,111410.0,111400.0,0.66743057]
[1757302889342,0.0002,111410.0,111400.0,0.479308]
[1757302889973,0.17971709,111410.0,111400.0,0.326548]
[1757302890107,0.17971709,111410.0,111400.0,0.479308]
[1757302892417,0.0002,111410.0,111400.0,0.479308]
[1757302901099,0.00218,111410.0,111400.0,0.479308]
[1757302901322,0.0002,111410.0,111400.0,0.479308]
[1757302905536,0.37224966,111410.0,111400.0,0.002]
[1757302906562,0.37224966,111410.0,111400.0,0.001]
[1757302908046,0.17953321,111400.0,111390.0,0.2216]
[1757302908272,0.36963578,111400.0,111390.0,0.2216]
[1757302909523,0.36963578,111400.0,111390.0,0.40114933]
[1757302910321,0.36963578,111400.0,111390.0,0.2216]
[1757302910578,0.37205578,111400.0,111390.0,0.2216]
[1757302911207,0.36963578,111400.0,111390.0,0.2216]
[1757302918374,0.37205578,111400.0,111390.0,0.06896]
[1757302918579,0.37205578,111400.0,111390.0,0.2216]
[1757302919023,0.18151321,111400.0,111390.0,0.22368]
[1757302919361,0.36963578,111400.0,111390.0,0.2216]
[1757302919745,0.36963578,111400.0,111390.0,0.40114933]
[1757302924106,0.18151321,111400.0,111390.0,0.40114933]
[1757302924317,0.36963578,111400.0,111390.0,0.40114933]
[1757302926346,0.55786373,111400.0,111390.0,0.40114933]
[1757302927911,0.18151321,111400.0,111390.0,0.40114933]
[1757302928137,0.55786373,111400.0,111390.0,0.24850933]
[1757302928333,0.55786373,111400.0,111390.0,0.40110933]
[1757302929364,0.17953321,111400.0,111390.0,0.40632933]
[1757302929884,0.36770847,111400.0,111390.0,0.40632933]
[1757302930015,0.36969847,111400.0,111390.0,0.40632933]
[1757302932687,0.36770847,111400.0,111390.0,0.40632933]
[1757302933488,0.36969847,111400.0,111390.0,0.40632933]
[1757302936428,0.33231709,111410.0,111400.0,0.17953321]
[1757302936592,0.36989235,111410.0,111400.0,0.18161321]
[1757302936793,0.36989235,111410.0,111400.0,0.18475321]
[1757302937797,0.36989235,111410.0,111400.0,0.17953321]
[1757302938004,0.36989235,111410.0,111390.0,0.43120977]
[1757302938229,0.18817526,111400.0,111390.0,0.43120977]
[1757302938401,0.18817526,111400.0,111390.0,0.43328977]
[1757302938804,0.17971709,111410.0,111400.0,0.17953321]
[1757302939055,0.36789235,111410.0,111400.0,0.18267321]
[1757302939260,0.36987235,111410.0,111400.0,0.18267321]
[1757302939580,0.36987235,111410.0,111400.0,0.18475321]
[1757302941819,0.36987235,111410.0,111400.0,0.17953321]
[1757302942496,0.18169709,111410.0,111400.0,0.18458321]
[1757302942716,0.36987235,111410.0,111400.0,0.18458321]
[1757302943322,0.36987235,111410.0,111400.0,0.17953321]
[1757302943668,0.36987235,111410.0,111400.0,0.18458321]
[1757302944946,0.36987235,111410.0,111390.0,0.51998576]
[1757302945161,0.18817526,111400.0,111390.0,0.52301576]
[1757302945423,0.36770847,111400.0,111390.0,0.19288643]
[1757302945603,0.36968847,111400.0,111390.0,0.34039643]
[1757302945964,0.55786373,111400.0,111390.0,0.34039643]
[1757302946704,0.55786373,111400.0,111390.0,0.51994576]
[1757302946871,0.36968847,111400.0,111390.0,0.52499576]
[1757302947074,0.36968847,111400.0,111390.0,0.52599576]
[1757302947563,0.36968847,111400.0,111390.0,0.52699576]
[1757302947687,0.36968847,111400.0,111390.0,0.34239643]
[1757302947918,0.36968847,111400.0,111390.0,0.34542643]
[1757302948132,0.36968847,111400.0,111390.0,0.34744643]
[1757302948442,0.36968847,111400.0,111390.0,0.52699576]
[1757302951623,0.36968847,111400.0,111390.0,0.34744643]
[1757302951925,0.36968847,111400.0,111390.0,0.52699576]
[1757302953596,0.18817526,111400.0,111390.0,0.52699576]
[1757302954089,0.18817526,111400.0,111390.0,0.45803576]
[1757302954288,0.19015526,111400.0,111390.0,0.45803576]
[1757302957254,0.00198,111400.0,111390.0,0.30042576]
[1757302957469,0.55786373,111400.0,111390.0,0.33406933]
[1757302957991,0.55786373,111400.0,111390.0,0.18154933]
[1757302958201,0.55786373,111400.0,111390.0,0.33406933]
[1757302958408,0.55786373,111400.0,111390.0,0.33306933]
[1757302960128,0.55786373,111400.0,111390.0,0.33206933]
[1757302964797,0.55786373,111400.0,111390.0,0.33509933]
[1757302965026,0.55786373,111400.0,111390.0,0.33711933]
[1757302969553,0.55786373,111400.0,111390.0,0.36408061]
[1757302970243,0.55786373,111400.0,111390.0,0.35903061]
[1757302971218,0.37833052,111400.0,111390.0,0.35903061]
[1757302971441,0.37833052,111400.0,111390.0,0.36428061]
[1757302971650,0.20667838,111410.0,111390.0,0.36428061]
[1757302971867,0.18817526,111400.0,111390.0,0.36428061]
[1757302974435,0.20667838,111410.0,111390.0,0.36428061]
[1757302974582,0.18817526,111400.0,111390.0,0.36428061]
[1757302976493,0.20667838,111410.0,111400.0,0.17953321]
[1757302976651,0.39683364,111410.0,111400.0,0.17953321]
[1757302978541,0.39683364,111410.0,111400.0,0.17953321]
[1757302980052,0.39683364,111410.0,111390.0,0.36223061]
[1757302980182,0.20865838,111410.0,111390.0,0.36223061]
[1757302980379,0.21731655,111410.0,111400.0,0.17953321]
[1757302980590,0.36789235,111410.0,111400.0,0.18478321]
[1757302981374,0.36789235,111410.0,111400.0,0.2117429]
[1757302981516,0.17971709,111410.0,111400.0,0.2117429]
[1757302981718,0.36789235,111410.0,111400.0,0.2117429]
[1757302981924,0.0002,111410.0,111400.0,0.2117429]
[1757302982131,0.36789235,111410.0,111400.0,0.2117429]
[1757302986374,0.17971709,111410.0,111400.0,0.2117429]
[1757302989053,0.36982032,111410.0,111400.0,0.2064929]
[1757302989266,0.36982032,111410.0,111400.0,0.17935969]
[1757302990103,0.36982032,111410.0,111400.0,0.02695969]
[1757302990314,0.36982032,111410.0,111400.0,0.17935969]
[1757302990530,0.36982032,111410.0,111400.0,0.02695969]
[1757302990683,0.36982032,111410.0,111400.0,0.17931969]
[1757302995536,0.37225032,111410.0,111400.0,0.17931969]
[1757302995957,0.37225032,111410.0,111400.0,0.02695969]
[1757302996166,0.37225032,111410.0,111400.0,0.17931969]
[1757302998556,0.52457032,111410.0,111400.0,0.15232]
[1757302999005,0.17953321,111400.0,111390.0,0.17928126]
[1757302999215,0.36765644,111400.0,111390.0,0.17928126]
[1757302999429,0.36963644,111400.0,111390.0,0.17928126]
[1757302999895,0.37205644,111400.0,111390.0,0.02696126]
[1757303000124,0.17954933,111390.0,111380.0,0.00041556]
[1757303000337,0.33186933,111390.0,111380.0,0.00041556]
[1757303000552,0.52440256,111390.0,111380.0,0.00041556]
[1757303000981,0.55136835,111390.0,111380.0,0.00041556]
[1757303001416,0.56034596,111390.0,111380.0,0.00041556]
[1757303002198,0.56034596,111390.0,111380.0,0.00141556]
[1757303002432,0.56034596,111390.0,111380.0,0.00241556]
[1757303003412,0.74846919,111390.0,111380.0,0.00241556]
[1757303008130,0.84038518,111390.0,111380.0,0.00241556]